Workbook

Sheet Alumno
A1: Curva de remanso para canal rectangular
A3: Ancho del canal rectángular | E3: b | F3: 0.5 | G3: m | I3: Calado Y al comienzo de la curva | L3: yini | M3: 4 | N3: m
A4: Caudal circulante por el canal | E4: Q | F4: 20 | G4: m3/s | I4: Calado Y al final de la curva | L4: yfin | M4: 3.7 | N4: m
A5: Número de Manning | E5: n | F5: 0.015
A6: Pendiente geométrica canal | E6: I0 | F6: 0.2 | G6: -
A7: Densidad del agua | E7: ro | F7: 1000 | G7: kg/m3
A8: Gravedad de la tierra | E8: g | F8: 9.81 | G8: m/s | I8: Incremento del intervalo en Y | L8: Incy | N8: m
A10: Calado | B10: Perímetro mojado | C10: Superficie mojada | D10: Radio hidráulico | E10: velocidad | F10: Energía específica | G10: Pendiente de pérdidas | H10: Incremento energía específica | I10: Pendiente de pérdidas media | J10: Incremento en x | K10: X acumulada | L10: Número de Froude al cuadrado | M10: Calado conjugado | N10: Impulsión
A11: y | B11: p | C11: S | D11: Rh | E11: v | F11: H | G11: I | H11: DH | I11: Im | J11: Dx | K11: x | L11: F2 | M11: ycong | N11: N
H12: H2-H1 | I12: (I1+I2)/2 | J12: DH/(I0-Im)

Sheet CRemanso_Rect_Red
A1: ="Curva " & M8 -> Curva S2
R2: Pend. | S2: Curvas | V2: Limites | X2: x | Y2: yc | Z2: yu | AA2: yucong
A3: Ancho del canal rectángular | E3: b | F3: 0.5 | G3: m | I3: Densidad del agua | L3: ro | M3: 1000 | N3: kg/m3 | R3: Suave | S3: S1 | T3: S2 | U3: S3 | V3: =IFERROR(LOOKUP(M8,S3:U3,S6:U6),LOOKUP(M8,S5:U5,S8:U8)) -> 33.97288062 | X3: =O12 -> 200 | Y3: =M5 -> 5.463659909 | Z3: =M6 -> 33.97288062 | AA3: =M6/2*(SQRT(1+8*F4^2/M4/M6^3/F3)-1) -> 0.140731364
A4: Caudal circulante por el canal | E4: Q | F4: 20 | G4: m3/s | I4: Gravedad de la tierra | L4: g | M4: 9.81 | N4: m/s | R4: Crítica | S4: F1 | T4: F2 | U4: F3 | V4: =IFERROR(LOOKUP(M8,S3:U3,S7:U7),LOOKUP(M8,S5:U5,S9:U9)) -> -1 | X4: =O17 -> 191.611435 | Y4: =M5 -> 5.463659909 | Z4: =M6 -> 33.97288062 | AA4: =AA3 -> 0.140731364
A5: Número de Manning | E5: n | F5: 0.015 | I5: Calado crítico | L5: yc | M5: =(($F$4/$F$3)^2/$M$4)^(1/3) -> 5.463659909 | N5: m | R5: Fuerte | S5: F1 | T5: F2 | U5: F3
A6: Pendiente geométrica canal | E6: I0 | F6: 0.002 | G6: - | I6: Calado uniforme | L6: yu | M6: =[1]!yuniforme(F4,F3,F5,F6) -> 33.97288062 | N6: m | R6: Suave | S6: =M6 -> 33.97288062 | T6: =M6 -> 33.97288062 | U6: =M5 -> 5.463659909
A7: Calado Y al comienzo de la curva | E7: yini | F7: 5.47 | G7: m | I7: Pendiente | L7: Pend | M7: =IF(M6>M5, R3, IF(M6=M5, R4, R5)) -> Suave | N7: - | R7: signo | S7: 1 | T7: -1 | U7: -1
A8: Calado Y al final de la curva | E8: yfin | F8: 7 | G8: m | I8: Tipo de curva de remanso | L8: Curva | M8: =IF(M7=R3,IF(F7>M6,S3,IF(F7<M5,U3,T3)),IF(M7=R5,IF(F7>M5,S5,IF(F7<M6,U5,T5)),"No hay")) -> S2 | N8: - | R8: Fuerte | S8: =M5 -> 5.463659909 | T8: =M6 -> 33.97288062 | U8: =M6 -> 33.97288062
A9: Coordenada x para inicio de la curva | E9: xini | F9: 200 | G9: m | I9: Incremento del intervalo en Y | L9: Incy | M9: =(F8-F7)/5 -> 0.306 | N9: m | R9: signo | S9: 1 | T9: 1 | U9: -1
A10: Calado | B10: Perímetro mojado | C10: Superficie mojada | D10: Radio hidráulico | E10: velocidad | F10: Energía específica | G10: Pendiente de pérdidas | H10: Incremento energía específica | I10: Pendiente de pérdidas media | J10: Incremento en x | K10: X acumulada | L10: Número de Froude al cuadrado | M10: Calado conjugado | N10: Impulsión | O10: x para dibujo
A11: y | B11: p | C11: S | D11: Rh | E11: v | F11: H | G11: I | H11: DH | I11: Im | J11: Dx | K11: x | L11: F2 | M11: ycong | N11: N | O11: Xdib
A12: =F7 -> 5.47 | B12: =$F$3+2*A12 -> 11.44 | C12: =$F$3*A12 -> 2.735 | D12: =C12/B12 -> 0.2390734266 | E12: =$F$4/C12 -> 7.31261426 | F12: =A12+E12^2/2/$M$4 -> 8.195500882 | G12: =$F$5^2*E12^2/D12^(4/3) -> 0.08108728756 | H12: H2-H1 | I12: (I1+I2)/2 | J12: DH/(I0-Im) | L12: =E12^2/$M$4/A12 -> 0.9965268308 | M12: =A12/2*(SQRT(1+8*L12)-1) -> 5.457324719 | N12: =$M$3*$F$4*E12+$F$3*$M$3*$M$4*A12^2/2 -> 219633.2924 | O12: =$F$9+K12 -> 200 | R12: Para utilizar este libro correctamente es necesario tener habilitadas las macros de Visual Basic
A13: =A12+$M$9 -> 5.776 | B13: 12.052 | C13: 2.888 | D13: =C13/B13 -> 0.2396282775 | E13: 6.925207756 | F13: 8.220368118 | G13: =$F$5^2*E13^2/D13^(4/3) -> 0.07249878201 | H13: =F13-F12 -> 0.02486723534 | I13: =(G12+G13)/2 -> 0.07679303479 | J13: =H13/($F$6-I13) -> -0.3324806301 | K13: =J13 -> -0.3324806301 | L13: 0.8463878523 | M13: 5.162790333 | N13: 220324.8918 | O13: =$F$9+K13 -> 199.6675194
A14: 6.082 | B14: 12.664 | C14: 3.041 | D14: =C14/B14 -> 0.2401295009 | E14: 6.576783953 | F14: 8.286591598 | G14: =$F$5^2*E14^2/D14^(4/3) -> 0.06520521203 | H14: =F14-F13 -> 0.06622348078 | I14: =(G13+G14)/2 -> 0.06885199702 | J14: =H14/($F$6-I14) -> -0.9905983924 | K14: =J14+K13 -> -1.323079023 | L14: 0.7249561323 | M14: 4.888753174 | N14: 222255.4297 | O14: =$F$9+K14 -> 198.676921 | R14: Excel 2010:
A15: 6.388 | B15: 13.276 | C15: 3.194 | D15: 0.2405845134 | E15: 6.261740764 | F15: 8.386440234 | G15: =$F$5^2*E15^2/D15^(4/3) -> 0.0589588669 | H15: 0.09984863583 | I15: =(G14+G15)/2 -> 0.06208203946 | J15: =H15/($F$6-I15) -> -1.661871613 | K15: =J15+K14 -> -2.984950635 | L15: 0.6256857339 | M15: 4.633246059 | N15: 225312.8644 | O15: 197.0150494 | S15: Archivo | U15: Opciones | W15: Centro de Confianza
A16: 6.694 | B16: 13.888 | C16: 3.347 | D16: 0.240999424 | E16: 5.975500448 | F16: 8.513908543 | G16: 0.05356853204 | H16: 0.1274683084 | I16: 0.05626369947 | J16: -2.349053044 | K16: -5.33400368 | L16: 0.5437432156 | M16: 4.39459416 | N16: 229405.6413 | O16: 194.6659963 | S16: Botón de configuración del centro de confianza
A17: =A16+$M$9 -> 7 | B17: 14.5 | C17: 3.5 | D17: 0.2413793103 | E17: 5.714285714 | F17: 8.664274272 | G17: 0.04888470866 | H17: 0.1503657298 | I17: 0.05122662035 | J17: -3.054561307 | K17: -8.388564987 | L17: 0.475506935 | M17: 4.171354485 | N17: 234458.2143 | O17: 191.611435 | S17: Deshabilitar todas las macros con notificación | X17: (Habilitarlas al abrir este libro)
R19: Para utilizar este libro correctamente es necesario tener habilitadas las macros de Visual Basic
R21: Excel 2013:
S22: Archivo | U22: Opciones | W22: Centro de Confianza
S23: Botón de configuración del centro de confianza
S24: Configuración de macros
S25: Deshabilitar todas las macros con notificación | X25: (Habilitarlas al abrir este libro)
